fUST/lending_fUST_20240711
["ID","MTS","AMOUNT","RATE_DAILY","PERIOD"]
[331714178,1720684250685,-500.0,0.00029041,7]
[331714179,1720684250694,-541.86,0.00029041,7]
[331714180,1720684250704,-500.0,0.00029041,7]
[331714181,1720684250713,-601.67,0.00029041,7]
[331714182,1720684250723,-500.0,0.00029041,7]
[331714183,1720684250733,-500.0,0.00029041,7]
[331714184,1720684250742,-2488.85,0.00029041,7]
[331714185,1720684250752,-500.0,0.00029041,7]
[331714186,1720684250762,-500.0,0.00029041,7]
[331714187,1720684250771,-6110.42,0.00029041,7]
[331714188,1720684250782,-794.78,0.00029041,7]
[331714189,1720684250792,-500.0,0.00029041,7]
[331714190,1720684250803,-1345.13,0.00029315,4]
[331714191,1720684250813,-500.0,0.00029315,2]
[331714192,1720684250822,-500.0,0.00029315,7]
[331714193,1720684250832,-500.0,0.00029315,7]
[331714194,1720684250841,-500.0,0.00029315,7]
[331714195,1720684250851,-500.0,0.00029315,7]
[331714196,1720684250862,-500.0,0.00029315,7]
[331714197,1720684250872,-500.0,0.00029315,7]
[331714198,1720684250881,-4436.48,0.00029315,7]
[331714199,1720684250891,-1544.52,0.00029315,7]
[331714200,1720684250900,-846.03,0.00029315,7]
[331714201,1720684250910,-500.0,0.00029315,7]
[331714202,1720684250919,-500.0,0.00029315,7]
[331714203,1720684250928,-500.0,0.00029315,7]
[331714204,1720684250938,-808.22,0.00029315,7]
[331714205,1720684250948,-538.92,0.00029315,7]
[331714206,1720684250957,-270.66616015,0.00029315,7]
[331714207,1720684250967,-500.0,0.00029315,7]
[331714208,1720684250976,-521.48,0.00029315,7]
[331714209,1720684250987,-605.47,0.00029315,7]
[331714210,1720684250996,-796.07,0.00029315,7]
[331714211,1720684251005,-500.0,0.00029315,7]
[331714212,1720684251014,-500.0,0.00029315,7]
[331714213,1720684251024,-500.0,0.00029315,7]
[331714214,1720684251034,-663.8,0.00029315,7]
[331714215,1720684251046,-991.21,0.00029315,7]
[331714216,1720684251056,-542.63,0.00029315,7]
[331714217,1720684251066,-2637.29,0.00029315,7]
[331714218,1720684251077,-500.0,0.00029315,7]
[331714219,1720684251088,-1442.29,0.00029315,7]
[331714220,1720684251097,-591.11,0.00029315,7]
[331714221,1720684251107,-531.09,0.00029315,7]
[331714222,1720684251116,-500.0,0.00029315,7]
[331714223,1720684251126,-500.0,0.00029315,7]
[331714224,1720684251135,-1281.46,0.00029315,7]
[331714225,1720684251144,-500.0,0.00029315,7]
[331714226,1720684251154,-541.86,0.00029315,7]
[331714227,1720684251164,-500.0,0.00029315,7]
[331714228,1720684251173,-601.67,0.00029315,7]
[331714229,1720684251183,-500.0,0.00029315,7]
[331714230,1720684251192,-500.0,0.00029315,7]
[331714231,1720684251201,-2488.85,0.00029315,7]
[331714232,1720684251211,-500.0,0.00029315,7]
[331714233,1720684251220,-500.0,0.00029315,7]
[331714234,1720684251229,-6110.42,0.00029315,7]
[331714235,1720684251238,-794.78,0.00029315,7]
[331714236,1720684251248,-500.0,0.00029315,7]
[331714237,1720684251258,-3541.22918415,0.00029383,2]
[331714238,1720684251267,-1345.13,0.00029589,4]
[331714239,1720684251276,-500.0,0.00029589,2]
[331714240,1720684251287,-500.0,0.00029589,7]
[331714241,1720684251297,-500.0,0.00029589,7]
[331714242,1720684251307,-500.0,0.00029589,7]
[331714243,1720684251317,-623.20445111,0.00029589,7]
[331714244,1720684251327,-500.0,0.00029589,7]
[331714245,1720684251337,-500.0,0.00029589,7]
[331714246,1720684251346,-4436.48,0.00029589,7]
[331714247,1720684251355,-1544.52,0.00029589,7]
[331714248,1720684251364,-846.03,0.00029589,7]
[331714249,1720684251373,-500.0,0.00029589,7]
[331714250,1720684251382,-500.0,0.00029589,7]
[331714251,1720684251392,-500.0,0.00029589,7]
[331714252,1720684251402,-808.22,0.00029589,7]
[331714253,1720684251411,-538.92,0.00029589,7]
[331714254,1720684251420,-500.0,0.00029589,7]
[331714255,1720684251430,-521.48,0.00029589,7]
[331714256,1720684251440,-605.47,0.00029589,7]
[331714257,1720684251449,-796.07,0.00029589,7]
[331714258,1720684251459,-500.0,0.00029589,7]
[331714259,1720684251468,-500.0,0.00029589,7]
[331714260,1720684251477,-629.37046633,0.00029589,7]
[331714261,1720684251488,-663.8,0.00029589,7]
[331714262,1720684251497,-991.21,0.00029589,7]
[331714263,1720684251506,-542.63,0.00029589,7]
[331714264,1720684251519,-2637.29,0.00029589,7]
[331714265,1720684251528,-500.0,0.00029589,7]
[331714266,1720684251538,-1442.29,0.00029589,7]
[331714267,1720684251547,-591.11,0.00029589,7]
[331714268,1720684251556,-531.09,0.00029589,7]
[331714269,1720684251566,-500.0,0.00029589,7]
[331714270,1720684251575,-500.0,0.00029589,7]
[331714271,1720684251585,-1281.46,0.00029589,7]
[331714272,1720684251595,-500.0,0.00029589,7]
[331714273,1720684251604,-541.86,0.00029589,7]
[331714274,1720684251614,-500.0,0.00029589,7]
[331714275,1720684251623,-601.67,0.00029589,7]
[331714276,1720684251633,-500.0,0.00029589,7]
[331714277,1720684251642,-500.0,0.00029589,7]
[331714278,1720684251652,-2488.85,0.00029589,7]
[331714279,1720684251662,-500.0,0.00029589,7]
[331714280,1720684251671,-500.0,0.00029589,7]
[331714281,1720684251681,-6110.42,0.00029589,7]
[331714282,1720684251690,-794.78,0.00029589,7]
[331714283,1720684251700,-500.0,0.00029589,7]
[331714284,1720684251710,-150.0,0.0002967,2]
[331714285,1720684251719,-382.7274674,0.00029699,2]
[331714286,1720684251729,-1967.9126316,0.00029753,2]
[331714287,1720684251740,-26753.21043197,0.00029765,2]
[331714288,1720684251749,-160.0,0.00029796,3]
[331714289,1720684251759,-249.67315643,0.000298,120]
[331714290,1720684251769,-620.00000001,0.00029809,2]
[331714291,1720684251779,-1345.13,0.00029863,4]
[331714292,1720684251877,-500.0,0.00029863,2]
[331714293,1720684251887,-500.0,0.00029863,7]
[331714294,1720684251896,-500.0,0.00029863,7]
[331714295,1720684251905,-500.0,0.00029863,7]
[331714296,1720684251915,-500.0,0.00029863,7]
[331714297,1720684251925,-500.0,0.00029863,7]
[331714298,1720684251934,-4436.48,0.00029863,7]
[331714299,1720684251943,-1544.52,0.00029863,7]
[331714300,1720684251953,-846.03,0.00029863,7]
[331714301,1720684251963,-500.0,0.00029863,7]
[331714302,1720684251972,-500.0,0.00029863,7]
[331714303,1720684251982,-500.0,0.00029863,7]
[331714304,1720684251991,-808.22,0.00029863,7]
[331714305,1720684252001,-538.92,0.00029863,7]
[331714306,1720684252010,-500.0,0.00029863,7]
[331714307,1720684252019,-521.48,0.00029863,7]
[331714308,1720684252030,-605.47,0.00029863,7]
[331714309,1720684252039,-796.07,0.00029863,7]
[331714310,1720684252049,-500.0,0.00029863,7]
[331714311,1720684252058,-500.0,0.00029863,7]
[331714312,1720684252068,-663.8,0.00029863,7]
[331714313,1720684252077,-991.21,0.00029863,7]
[331714314,1720684252086,-542.63,0.00029863,7]
[331714315,1720684252096,-2637.29,0.00029863,7]
[331714316,1720684252106,-500.0,0.00029863,7]
[331714317,1720684252115,-1442.29,0.00029863,7]
[331714318,1720684252124,-591.11,0.00029863,7]
[331714319,1720684252134,-531.09,0.00029863,7]
[331714320,1720684252144,-500.0,0.00029863,7]
[331714321,1720684252153,-500.0,0.00029863,7]
[331714322,1720684252164,-1281.46,0.00029863,7]
[331714323,1720684252174,-166.29271849,0.00029863,7]
[331714324,1720684252184,-541.86,0.00029863,7]
[331714325,1720684252193,-500.0,0.00029863,7]
[331714326,1720684252203,-601.67,0.00029863,7]
[331714327,1720684252214,-500.0,0.00029863,7]
[331714328,1720684252224,-500.0,0.00029863,7]
[331714329,1720684252234,-2488.85,0.00029863,7]
[331714330,1720684252243,-566.53666158,0.00029863,7]
[331714331,1720684252253,-500.0,0.00029863,7]
[331714332,1720684252264,-6110.42,0.00029863,7]
[331714333,1720684252273,-794.78,0.00029863,7]
[331714334,1720684252283,-500.0,0.00029863,7]
[331714335,1720684252293,-170.51355908,0.0003,4]
[331714336,1720684252304,-499.99255164,0.0003,4]
[331714337,1720684252313,-643.7802781,0.0003,4]
[331714338,1720684252323,-154.55950541,0.0003,4]
[331714339,1720684252332,-500.0,0.0003,2]
[331714340,1720684252341,-1153.89206966,0.0003,2]
[331714341,1720684252351,-471.75108286,0.0003,4]
[331714342,1720684252360,-246344.93046804,0.0003,30]
[331714343,1720684252931,-277.04585036,0.00022755,2]
[331714344,1720684252960,-53.45649807,0.00022755,2]
[331714345,1720684252969,-500.0,0.00022755,2]
[331714346,1720684252978,-316.84072399,0.00022755,2]
[331714347,1720684252988,-425.42220192,0.00022755,2]
[331714348,1720684252997,-500.0,0.00022755,2]
[331714349,1720684253008,-320.13473816,0.00022755,2]
[331714350,1720684253017,-52150.85185038,0.00022941,2]
[331714351,1720684253027,-500.0,0.00024658,2]
[331714352,1720684253036,-500.0,0.00024658,2]
[331714353,1720684253046,-500.0,0.00024658,2]
[331714354,1720684253055,-500.0,0.00024658,2]
[331714355,1720684253064,-500.0,0.00024658,2]
[331714356,1720684253073,-500.0,0.00024658,2]
[331714357,1720684253082,-500.0,0.00024658,2]
[331714358,1720684253092,-500.0,0.00024658,2]
[331714359,1720684253101,-430.61949865,0.00024658,2]
[331714360,1720684253110,-500.0,0.00024658,2]
[331714361,1720684253120,-500.0,0.00024658,2]
[331714362,1720684253130,-500.0,0.00024658,2]
[331714363,1720684253139,-500.0,0.00024658,2]
[331714364,1720684253149,-500.0,0.00024658,2]
[331714365,1720684253159,-1002.38837068,0.00027397,2]
[331714366,1720684253168,-1002.38837068,0.00027397,2]
[331714367,1720684253178,-1002.38837068,0.00027397,2]
[331714368,1720684253188,-1002.38837068,0.00027397,2]
[331714369,1720684253198,-1002.38837068,0.00027397,2]
[331714370,1720684253207,-1002.38837068,0.00027397,2]
[331714371,1720684253218,-1002.38837068,0.00027397,2]
[331714372,1720684253228,-1002.38837068,0.00027397,2]
[331714373,1720684253239,-1002.38837068,0.00027397,2]
[331714374,1720684253248,-1002.38837068,0.00027397,2]
[331714375,1720684253258,-1002.38837068,0.00027397,2]
[331714376,1720684253269,-1002.38837068,0.00027397,2]
[331714377,1720684253279,-1002.38837068,0.00027397,2]
[331714378,1720684253291,-1002.38837068,0.00027397,2]
[331714379,1720684253302,-1002.38837068,0.00027397,2]
[331714380,1720684253313,-1002.38837068,0.00027397,2]
[331714381,1720684253323,-1002.38837068,0.00027397,2]
[331714382,1720684253333,-1002.38837068,0.00027397,2]
[331714383,1720684253342,-1002.38837068,0.00027397,2]
[331714384,1720684253352,-1002.38837068,0.00027397,2]
[331714385,1720684253361,-1002.38837068,0.00027397,2]
[331714386,1720684253371,-1002.38837068,0.00027397,2]
[331714387,1720684253380,-1002.38837068,0.00027397,2]
[331714388,1720684253390,-1002.38837068,0.00027397,2]
[331714389,1720684253400,-1002.38837068,0.00027397,2]
[331714390,1720684253410,-1002.38837068,0.00027397,2]
[331714391,1720684253420,-1002.38837068,0.00027397,2]
[331714392,1720684253429,-1002.38837068,0.00027397,2]
[331714393,1720684253439,-1002.38837068,0.00027397,2]
[331714394,1720684253448,-1002.38837068,0.00027397,2]
[331714395,1720684253458,-1002.38837068,0.00027397,2]
[331714396,1720684253467,-1002.38837068,0.00027397,2]
[331714397,1720684253476,-1002.38837068,0.00027397,2]
[331714398,1720684253486,-1002.38837068,0.00027397,2]
[331714399,1720684253495,-1002.38837068,0.00027397,2]
[331714400,1720684253504,-1002.38837068,0.00027397,2]
[331714401,1720684253514,-1002.38837068,0.00027397,2]
[331714402,1720684253523,-1002.38837068,0.00027397,2]
[331714403,1720684253533,-1002.38837068,0.00027397,2]
[331714404,1720684253543,-1002.38837068,0.00027397,2]
[331714405,1720684253552,-1002.38837068,0.00027397,2]
[331714406,1720684253563,-1002.38837068,0.00027397,2]
[331714407,1720684253572,-1002.38837068,0.00027397,2]
[331714408,1720684253581,-1002.38837068,0.00027397,2]
[331714409,1720684253591,-1002.38837068,0.00027397,2]
[331714410,1720684253602,-468.026029,0.00027397,7]
[331714411,1720684253611,-468.026029,0.00027397,7]
[331714412,1720684253621,-468.026029,0.00027397,7]
[331714413,1720684253630,-468.026029,0.00027397,7]
[331714414,1720684253640,-468.026029,0.00027397,7]
[331714415,1720684253649,-25852.56043196,0.0003,30]
[331714416,1720684253660,-3972.0,0.0003,2]
[331714417,1720684253670,-8677.91579166,0.0003,5]
[331714418,1720684253679,-287.0,0.0003,2]
[331714419,1720684253688,-270.75944258,0.0003,2]
[331714420,1720684253697,-1345.13,0.00030136,4]
[331714421,1720684253707,-500.0,0.00030136,2]
[331714422,1720684253716,-500.0,0.00030136,7]
[331714423,1720684253725,-500.0,0.00030136,7]
[331714424,1720684253736,-500.0,0.00030136,7]
[331714425,1720684253746,-500.0,0.00030136,7]
[331714426,1720684253756,-500.0,0.00030136,7]
[331714427,1720684253766,-4436.48,0.00030136,7]
[331714428,1720684253863,-1544.52,0.00030136,7]
[331714429,1720684253875,-846.03,0.00030136,7]
[331714430,1720684253885,-500.0,0.00030136,7]
[331714431,1720684253896,-500.0,0.00030136,7]
[331714432,1720684253905,-500.0,0.00030136,7]
[331714433,1720684253914,-808.22,0.00030136,7]
[331714434,1720684253924,-538.92,0.00030136,7]
[331714435,1720684253933,-232.2031724,0.00030136,7]
[331714436,1720684253943,-521.48,0.00030136,7]
[331714437,1720684253952,-605.47,0.00030136,7]
[331714438,1720684253962,-796.07,0.00030136,7]
[331714439,1720684253971,-500.0,0.00030136,7]
[331714440,1720684253980,-500.0,0.00030136,7]
[331714441,1720684253990,-663.8,0.00030136,7]
[331714442,1720684254000,-991.21,0.00030136,7]
[331714443,1720684254010,-542.63,0.00030136,7]
[331714444,1720684254019,-2637.29,0.00030136,7]
[331714445,1720684254030,-500.0,0.00030136,7]
[331714446,1720684254039,-1442.29,0.00030136,7]
[331714447,1720684254048,-591.11,0.00030136,7]
[331714448,1720684254058,-531.09,0.00030136,7]
[331714449,1720684254067,-500.0,0.00030136,7]
[331714450,1720684254076,-500.0,0.00030136,7]
[331714451,1720684254086,-1281.46,0.00030136,7]
[331714452,1720684254096,-541.86,0.00030136,7]
[331714453,1720684254106,-500.0,0.00030136,7]
[331714454,1720684254115,-601.67,0.00030136,7]
[331714455,1720684254125,-500.0,0.00030136,7]
[331714456,1720684254135,-500.0,0.00030136,7]
[331714457,1720684254145,-2488.85,0.00030136,7]
[331714458,1720684254155,-500.0,0.00030136,7]
[331714459,1720684254165,-6110.42,0.00030136,7]
[331714460,1720684254174,-794.78,0.00030136,7]
[331714461,1720684254184,-500.0,0.00030136,7]
[331714462,1720684254193,-1345.13,0.0003041,4]
[331714463,1720684254203,-500.0,0.0003041,2]
[331714464,1720684254212,-500.0,0.0003041,7]
[331714465,1720684254222,-500.0,0.0003041,7]
[331714466,1720684254231,-471.96438386,0.0003041,7]
[331714467,1720684254242,-500.0,0.0003041,7]
[331714468,1720684254252,-500.0,0.0003041,7]
[331714469,1720684254261,-566.07493271,0.0003041,7]
[331714470,1720684254274,-1077.6515526,0.0003041,7]
[331714472,1720684426514,154.57491897,0.00018899,2]
[331714473,1720684459814,217.78162236,0.00018899,2]
[331714474,1720684475812,217.78162236,0.00018899,2]
[331714476,1720684553848,1987.94718132,0.00018899,2]
[331714479,1720684598823,217.78162236,0.00018899,2]
[331714480,1720684660537,1435.91858147,0.00018899,2]
[331714481,1720684688827,230.47339817,0.00018899,2]
[331714483,1720684741077,2128.85592131,0.00018899,2]
[331714487,1720684776232,210.35312581,0.00018899,2]
[331714488,1720684777035,154.57491897,0.00018899,2]
[331714495,1720684897568,503.68970479,0.00018899,2]
[331714496,1720684898100,2128.85592131,0.00018899,2]
[331714497,1720684902095,159.74315576,0.00018899,2]
[331714499,1720684970659,266.03008925,0.00018899,2]
[331714501,1720685038163,2180.61431353,0.00018899,2]
[331714503,1720685109424,7851.2667397,0.00018983,2]
[331714504,1720685126641,3756.7091814,0.00018832,2]
[331714505,1720685134620,518.1114155,0.00018899,2]
[331714506,1720685151060,224.11988383,0.00018899,2]
[331714509,1720685195118,-2410.160214,0.00019217,2]
[331714510,1720685195141,-300.0,0.0001962,2]
[331714511,1720685195163,-300.0,0.0001962,2]
[331714512,1720685195184,-704.14158875,0.00019621,2]
[331714516,1720685243418,702.7770511,0.00018832,2]
[331714518,1720685273120,159.74315576,0.00018899,2]
[331714520,1720685292520,2134.96934119,0.00018899,2]
[331714521,1720685301374,217.72515829,0.00018832,2]
[331714522,1720685316332,405.0203601,0.00018832,2]
[331714523,1720685355659,20987.10089786,0.00018899,2]
[331714524,1720685364176,-3843.28711641,0.00018899,2]
[331714525,1720685364198,-1639.16859609,0.000189,2]
[331714526,1720685364219,-201.03633962,0.00019165,2]
[331714527,1720685364238,-300.0,0.0001962,2]
[331714528,1720685364259,-24195.85841125,0.00019621,2]
[331714529,1720685364280,-250.0,0.00019809,2]
[331714530,1720685364301,-3000.0,0.00019809,2]
[331714531,1720685364321,-1795.75190988,0.000199,2]
[331714532,1720685364349,-2281.8649205,0.000199,2]
[331714533,1720685364370,-154.76008793,0.0002,2]
[331714534,1720685364391,-293.58203646,0.0002,2]
[331714535,1720685364412,-158.63932694,0.0002,2]
[331714536,1720685364432,-2373.0107618,0.00020031,2]
[331714537,1720685364453,-1144.294128,0.00020555,2]
[331714538,1720685364474,-2988.4423366,0.00020592,2]
[331714539,1720685364493,-17540.9247578,0.0002063,2]
[331714540,1720685364514,-443.264152,0.00021096,2]
[331714541,1720685364534,-620.40662591,0.00021448,2]
[331714542,1720685364555,-420.0,0.00021582,2]
[331714543,1720685364928,524.1077099,0.00018899,2]
[331714545,1720685367584,201.03633962,0.00018899,2]
[331714561,1720685432112,-166.666666,0.00021918,2]
[331714563,1720685432122,-135.333334,0.00022431,2]
[331714568,1720685432163,-31.333332,0.00022431,2]
[331714570,1720685432172,-620.0203313,0.00022521,2]
[331714571,1720685432181,-159.74315576,0.00022579,2]
[331714572,1720685432191,-159.74315576,0.00022579,2]
[331714573,1720685432201,-280.63795426,0.00022864,2]
[331714668,1720685438095,-529.66515674,0.00022864,2]
[331714669,1720685438106,-1795.75190981,0.000229,2]
[331714670,1720685438116,-201.03633962,0.00022907,2]
[331714671,1720685438125,-493.91941855,0.00022907,2]
[331714672,1720685438136,-293.58203646,0.00022907,2]
[331714673,1720685438147,-166.666666,0.00022944,2]
[331714674,1720685438157,-902.0,0.00023,2]
[331714675,1720685438167,-166.666666,0.00023456,2]
[331714676,1720685438176,-620.00101656,0.00023647,2]
[331714677,1720685438187,-1639.16859609,0.000239,2]
[331714678,1720685438197,-166.666666,0.00023969,2]
[331714679,1720685438207,-300.0,0.00023974,2]
[331714680,1720685438216,-2883.0,0.00023975,2]
[331714681,1720685438226,-166.666666,0.00024482,2]
[331714682,1720685438235,-380.0,0.00024658,2]
[331714683,1720685438245,-2000.0,0.0002486,2]
[331714684,1720685438254,-1629.39297982,0.00024881,2]
[331714685,1720685438264,-302.21432435,0.000249,2]
[331714686,1720685438274,-521.45,0.0002492,3]
[331714687,1720685438284,-173.81,0.0002493,3]
[331714688,1720685438294,-19884.98,0.0002494,3]
[331714689,1720685438304,-102737.320841,0.0002495,3]
[331714690,1720685438314,-500.0,0.00024959,2]
[331714691,1720685438324,-316.84072399,0.00024959,2]
[331714692,1720685438334,-500.0,0.00024959,2]
[331714693,1720685438344,-425.42220192,0.00024959,2]
[331714694,1720685438354,-500.0,0.00024959,2]
[331714695,1720685438363,-500.0,0.00024959,2]
[331714696,1720685438373,-500.0,0.00024959,2]
[331714697,1720685438383,-320.13473816,0.00024959,2]
[331714698,1720685438392,-500.0,0.00024959,2]
[331714699,1720685438403,-500.0,0.00024959,2]
[331714700,1720685438412,-500.0,0.00024959,2]
[331714701,1720685438421,-500.0,0.00024959,2]
[331714702,1720685438431,-500.0,0.00024959,2]
[331714703,1720685438441,-500.0,0.00024959,2]
[331714704,1720685438450,-500.0,0.00024959,2]
[331714705,1720685438460,-500.0,0.00024959,2]
[331714706,1720685438469,-500.0,0.00024959,2]
[331714707,1720685438479,-500.0,0.00024959,2]
[331714708,1720685438488,-430.61949865,0.00024959,2]
[331714709,1720685438498,-20735.95853321,0.0002496,5]
[331714710,1720685438507,-308211.962524,0.0002496,3]
[331714711,1720685438517,-167.95267,0.00024981,2]
[331714712,1720685438526,-13556.25487016,0.00025,2]
[331714713,1720685438536,-229.23922118,0.00025,2]
[331714714,1720685438546,-302.21432435,0.00025149,2]
[331714715,1720685438555,-426.93075053,0.00025398,2]
[331714716,1720685438565,-1629.39297982,0.00025485,2]
[331714717,1720685438575,-500.0,0.000255,2]
[331714718,1720685438585,-500.0,0.000255,2]
[331714719,1720685438595,-196.50571554,0.000255,2]
[331714720,1720685438605,-243.19844845,0.000255,2]
[331714721,1720685438614,-500.0,0.000255,2]
[331714722,1720685438624,-500.0,0.000255,2]
[331714723,1720685438634,-500.0,0.000255,2]
[331714724,1720685438644,-171.45146402,0.000255,2]
[331714725,1720685438654,-500.0,0.000255,2]
[331714726,1720685438665,-500.0,0.000255,2]
[331714727,1720685438675,-500.0,0.000255,2]
[331714728,1720685438685,-500.0,0.000255,2]
[331714729,1720685438695,-500.0,0.000255,2]
[331714730,1720685438705,-500.0,0.000255,2]
[331714731,1720685438714,-500.0,0.000255,2]
[331714732,1720685438724,-500.0,0.000255,2]
[331714733,1720685438733,-500.0,0.000255,2]
[331714734,1720685438743,-500.0,0.000255,2]
[331714735,1720685438753,-283.56642194,0.000255,2]
[331714736,1720685438763,-52150.85185038,0.00025501,2]
[331714737,1720685438773,-30000.0,0.00025501,2]
[331714738,1720685438784,-1795.75190981,0.000259,2]
[331714739,1720685438794,-155.45465387,0.00025902,2]
[331714740,1720685438804,-500.0,0.00026,2]
[331714741,1720685438814,-959.04406179,0.00026089,2]
[331714742,1720685438828,-670.34891803,0.00026089,2]
[331714743,1720685438838,-347.62,0.000263,3]
[331714744,1720685438848,-420.0,0.00026371,2]
[331714745,1720685438858,-1629.39297982,0.00026693,2]
[331714746,1720685438868,-306.0,0.00026904,2]
[331714747,1720685438878,-500.0,0.00027,2]
[331714748,1720685438888,-443.264152,0.00027195,2]
[331714749,1720685438899,-4477.00627299,0.00027287,3]
[331714752,1720685439693,-1662.91,0.00027287,3]
[331714763,1720685440169,-82748.08372701,0.00027287,3]
[331714764,1720685440179,-1629.39297982,0.00027297,2]
[331714765,1720685440189,-200.0,0.00027379,2]
[331714766,1720685440199,-500.0,0.00027397,7]
[331714767,1720685440209,-500.0,0.00027397,7]
[331714768,1720685440218,-500.0,0.00027397,7]
[331714769,1720685440228,-500.0,0.00027397,7]
[331714770,1720685440237,-500.0,0.00027397,7]
[331714771,1720685440247,-500.0,0.00027397,7]
[331714772,1720685440256,-500.0,0.00027397,7]
[331714773,1720685440266,-500.0,0.00027397,7]
[331714774,1720685440275,-500.0,0.00027397,7]
[331714775,1720685440284,-500.0,0.00027397,7]
[331714776,1720685440294,-500.0,0.00027397,7]
[331714777,1720685440304,-530.72,0.00027397,7]
[331714778,1720685440314,-1500.0,0.00027397,7]
[331714779,1720685440324,-660.81,0.00027397,7]
[331714780,1720685440334,-564.02,0.00027397,7]
[331714781,1720685440344,-1029.68,0.00027397,7]
[331714782,1720685440355,-629.37046633,0.00027397,7]
[331714783,1720685440364,-500.0,0.00027397,7]
[331714784,1720685440374,-500.0,0.00027397,7]
[331714785,1720685440383,-500.0,0.00027397,7]
[331714786,1720685440392,-500.0,0.00027397,7]
[331714787,1720685440402,-500.0,0.00027397,7]
[331714788,1720685440411,-500.0,0.00027397,7]
[331714789,1720685440420,-500.0,0.00027397,7]
[331714790,1720685440429,-500.0,0.00027397,7]
[331714791,1720685440439,-2912.75,0.00027397,7]
[331714792,1720685440448,-538.81,0.00027397,7]
[331714793,1720685440457,-500.0,0.00027397,7]
[331714794,1720685440467,-500.0,0.00027397,7]
[331714795,1720685440476,-500.0,0.00027397,7]
[331714796,1720685440485,-500.0,0.00027397,7]
[331714797,1720685440495,-1977.97,0.00027397,7]
[331714798,1720685440504,-500.0,0.00027397,7]
[331714799,1720685440514,-151.0,0.00027397,7]
[331714800,1720685440524,-1081.72,0.00027397,7]
[331714801,1720685440533,-500.0,0.00027397,7]
[331714802,1720685440543,-500.0,0.00027397,7]
[331714803,1720685440552,-961.09,0.00027397,7]
[331714804,1720685440561,-500.0,0.00027397,7]
[331714805,1720685440571,-500.0,0.00027397,7]
[331714806,1720685440580,-500.0,0.00027397,7]
[331714807,1720685440589,-500.0,0.00027397,7]
[331714808,1720685440599,-1970.34,0.00027397,7]
[331714809,1720685440609,-500.0,0.00027397,7]
[331714810,1720685440617,-4837.42,0.00027397,7]
[331714811,1720685440626,-596.09,0.00027397,7]
[331714812,1720685440635,-500.0,0.00027397,7]
[331714813,1720685440644,-1064.89,0.00027397,4]
[331714814,1720685440653,-500.0,0.00027397,2]
[331714815,1720685440663,-500.0,0.00027397,2]
[331714816,1720685440673,-500.0,0.00027397,7]
[331714817,1720685440682,-1002.38837068,0.00027397,2]
[331714818,1720685440691,-1002.38837068,0.00027397,2]
[331714819,1720685440701,-1002.38837068,0.00027397,2]
[331714820,1720685440710,-1002.38837068,0.00027397,2]
[331714821,1720685440719,-1002.38837068,0.00027397,2]
[331714822,1720685440728,-1002.38837068,0.00027397,2]
[331714823,1720685440737,-1002.38837068,0.00027397,2]
[331714824,1720685440746,-1002.38837068,0.00027397,2]
[331714825,1720685440755,-1002.38837068,0.00027397,2]
[331714826,1720685440764,-1002.38837068,0.00027397,2]
[331714827,1720685440773,-1002.38837068,0.00027397,2]
[331714828,1720685440782,-1002.38837068,0.00027397,2]
[331714829,1720685440792,-1002.38837068,0.00027397,2]